Workbook

Sheet Лист1
A1: Школа | C1: МБОУ "Татарско-Танаевская СОШ имени Афзала Шамова" ЗМР РТ | F1: Согласовал: | G1: должность | H1: директор школы
A2: Типовое примерное меню приготавливаемых блюд | G2: фамилия | H2: Гарипова В.П.
A3: Возрастная категория | E3: 7-11 лет | G3: дата | H3: 1 | I3: 9 | J3: 2025
H4: день | I4: месяц | J4: год
A5: Неделя | B5: День недели | C5: Прием пищи | D5: Раздел меню | E5: Блюда | F5: Вес блюда, г | G5: Белки | H5: Жиры | I5: Углеводы | J5: Калорийность | K5: № рецептуры | L5: Цена
A6: 1 | B6: 1 | C6: Завтрак | D6: гор.блюдо | E6: Тефтели куриные "Лакомка" в соусе для запекания | F6: 90 | G6: 9.268 | H6: 11.111 | I6: 5.217 | J6: 158 | K6: ТТК 2020 г
D7: гор.блюдо | E7: Каша гречневая рассыпчатая | F7: 150 | G7: 6.622 | H7: 5.599 | I7: 35.675 | J7: 212 | K7: №302/2015г,Дели
D8: гор.напиток | E8: Напиток из вишни | F8: 200 | G8: 0.120 | H8: 0.030 | I8: 11.570 | J8: 48 | K8: ТТК №2694 от 14.09.2023 г
D9: хлеб | E9: Хлеб ржано-пшеничный/ Хлеб пшеничный | F9: 40 | G9: 2.520 | H9: 0.360 | I9: 18.840 | J9: 91
D10: фрукты | E10: Плоды и ягоды свежие (яблоки) | F10: 100 | G10: 0.400 | H10: 0.400 | I10: 9.800 | J10: 47 | K10: №338 Дели 2015г
D13: итого | F13: =SUM(F6:F12) -> 580 | G13: 18.93 | H13: 17.5 | I13: 81.102 | J13: 556 | L13: 69.43
A14: =A6 -> 1 | B14: 1 | C14: Обед | D14: закуска
D15: 1 блюдо
D16: 2 блюдо
D17: гарнир
D18: напиток
D19: хлеб бел.
D20: хлеб черн.
D23: итого | F23: =SUM(F14:F22) -> 0 | G23: 0 | H23: 0 | I23: 0 | J23: 0 | L23: =SUM(L14:L22) -> 0
A24: =A6 -> 1 | B24: 1 | C24: Итого за день: | F24: =F13+F23 -> 580 | G24: 18.93 | H24: 17.5 | I24: 81.102 | J24: 556 | L24: =L13+L23 -> 69.43
A25: 1 | B25: 2 | C25: Завтрак | D25: гор.блюдо | E25: Фрикассе из куриных грудок | F25: 90 | G25: 8.026 | H25: 9.076 | I25: 1.236 | J25: 119 | K25: ТТК июль 2021г
D26: гор.блюдо | E26: Каша рисовая вязкая | F26: 150 | G26: 4.303 | H26: 6.129 | I26: 28.944 | J26: 188 | K26: №303/2015г,Дели
D27: гор.напиток | E27: Чай с сахаром, лимоном | F27: 213 | G27: 0.056 | H27: 0.012 | I27: 8.148 | J27: 34 | K27: ТТК от 2021г
D28: хлеб | E28: Хлеб ржано-пшеничный/ Хлеб пшеничный | F28: 55 | G28: 3.530 | H28: 0.490 | I28: 26.010 | J28: 126
D32: итого | F32: =SUM(F25:F31) -> 508 | G32: 15.915 | H32: 15.707 | I32: 64.338 | J32: 467 | L32: 69.43
A33: =A25 -> 1 | B33: 2 | C33: Обед | D33: закуска
D34: 1 блюдо
D35: 2 блюдо
D36: гарнир
D37: напиток
D38: хлеб бел.
D39: хлеб черн.
D42: итого | F42: =SUM(F33:F41) -> 0 | G42: 0 | H42: 0 | I42: 0 | J42: 0 | L42: =SUM(L33:L41) -> 0
A43: =A25 -> 1 | B43: 2 | C43: Итого за день: | F43: =F32+F42 -> 508 | G43: 15.915 | H43: 15.707 | I43: 64.338 | J43: 467 | L43: =L32+L42 -> 69.43
A44: 1 | B44: 3 | C44: Завтрак | D44: гор.блюдо | E44: Сосиски отварные с соусом для запекания с овощами натуральными свежими (огурцами) | F44: 120 | G44: 9.126 | H44: 9.573 | I44: 9.328 | J44: 160 | K44: №243/2015 Дели
D45: гор.блюдо | E45: Картофель запеченный (из сырого) | F45: 150 | G45: 3.507 | H45: 8.224 | I45: 28.402 | J45: 202 | K45: ТТК
D46: гор.напиток | E46: Чай с сахаром | F46: 208 | G46: 0.011 | H46: 0.007 | I46: 7.998 | J46: 32 | K46: ТТК от 2021г
D47: хлеб | E47: Хлеб ржано-пшеничный/ Хлеб пшеничный | F47: 40 | G47: 2.520 | H47: 0.360 | I47: 18.840 | J47: 91
D51: итого | F51: =SUM(F44:F50) -> 518 | G51: 15.164 | H51: 18.164 | I51: 64.568 | J51: 485 | L51: 69.43
A52: =A44 -> 1 | B52: 3 | C52: Обед | D52: закуска
D53: 1 блюдо
D54: 2 блюдо
D55: гарнир
D56: напиток
D57: хлеб бел.
D58: хлеб черн.
D61: итого | F61: =SUM(F52:F60) -> 0 | G61: 0 | H61: 0 | I61: 0 | J61: 0 | L61: =SUM(L52:L60) -> 0
A62: =A44 -> 1 | B62: 3 | C62: Итого за день: | F62: =F51+F61 -> 518 | G62: 15.164 | H62: 18.164 | I62: 64.568 | J62: 485 | L62: =L51+L61 -> 69.43
A63: 1 | B63: 4 | C63: Завтрак | D63: гор.блюдо | E63: Плов с говядиной | F63: 190 | G63: 13.404 | H63: 14.443 | I63: 35.065 | J63: 324 | K63: ТТК 2021г
D65: гор.напиток | E65: Чай с сахаром, лимоном | F65: 213 | G65: 0.056 | H65: 0.012 | I65: 8.148 | J65: 34 | K65: ТТК от 2021г
D66: хлеб | E66: Хлеб ржано-пшеничный/ Хлеб пшеничный | F66: 40 | G66: 2.520 | H66: 0.360 | I66: 18.840 | J66: 91
D68: закуска | E68: Салат Пестрый | F68: 60 | G68: 0.663 | H68: 3.102 | I68: 6.594 | J68: 57 | K68: №84 Сбор. Реч.2013 г
D70: итого | F70: =SUM(F63:F69) -> 503 | G70: 16.643 | H70: 17.917 | I70: 68.647 | J70: 506 | L70: 69.43
A71: =A63 -> 1 | B71: 4 | C71: Обед | D71: закуска
D72: 1 блюдо
D73: 2 блюдо
D74: гарнир
D75: напиток
D76: хлеб бел.
D77: хлеб черн.
D80: итого | F80: =SUM(F71:F79) -> 0 | G80: 0 | H80: 0 | I80: 0 | J80: 0 | L80: =SUM(L71:L79) -> 0
A81: =A63 -> 1 | B81: 4 | C81: Итого за день: | F81: =F70+F80 -> 503 | G81: 16.643 | H81: 17.917 | I81: 68.647 | J81: 506 | L81: =L70+L80 -> 69.43
A82: 1 | B82: 5 | C82: Завтрак | D82: гор.блюдо | E82: Фрикассе из куриных грудок | F82: 90 | G82: 8.026 | H82: 9.076 | I82: 1.236 | J82: 119 | K82: ТТК июль 2021г
D83: гор.блюдо | E83: Макаронные изделия отварные | F83: 150 | G83: 5.602 | H83: 5.068 | I83: 35.906 | J83: 212 | K83: №309/2015г Дели
D84: гор.напиток | E84: Напиток из вишни | F84: 200 | G84: 0.120 | H84: 0.030 | I84: 11.570 | J84: 48 | K84: ТТК №2694 от 14.09.2023г
D85: хлеб | E85: Хлеб ржано-пшеничный/ Хлеб пшеничный | F85: 40 | G85: 2.520 | H85: 0.360 | I85: 18.840 | J85: 91
D87: закуска | E87: Салат из моркови с яблоками | F87: 60 | G87: 0.594 | H87: 6.084 | I87: 5.272 | J87: 79 | K87: №10 Сб.Пермь 2001г
D89: итого | F89: =SUM(F82:F88) -> 540 | G89: 16.862 | H89: 20.618 | I89: 72.824 | J89: 549 | L89: 69.43
A90: =A82 -> 1 | B90: 5 | C90: Обед | D90: закуска
D91: 1 блюдо
D92: 2 блюдо
D93: гарнир
D94: напиток
D95: хлеб бел.
D96: хлеб черн.
D99: итого | F99: =SUM(F90:F98) -> 0 | G99: 0 | H99: 0 | I99: 0 | J99: 0 | L99: =SUM(L90:L98) -> 0
A100: =A82 -> 1 | B100: 5 | C100: Итого за день: | F100: =F89+F99 -> 540 | G100: 16.862 | H100: 20.618 | I100: 72.824 | J100: 549 | L100: =L89+L99 -> 69.43
A101: 1 | B101: 6 | C101: Завтрак | D101: гор.блюдо | E101: Пельмени "Для умников и умниц" отварные с соус. для запекания | F101: 180 | G101: 16.544 | H101: 19.086 | I101: 39.317 | J101: 400 | K101: ТТК 2015г
D103: гор.напиток | E103: Чай с сахаром, лимоном | F103: 213 | G103: 0.056 | H103: 0.012 | I103: 8.148 | J103: 34 | K103: ТТК от 2021г
D104: хлеб | E104: Хлеб ржано-пшеничный/ Хлеб пшеничный | F104: 40 | G104: 2.520 | H104: 0.360 | I104: 18.840 | J104: 91
D105: фрукты | E105: Плоды и ягоды свежие (яблоки) | F105: 100 | G105: 0.400 | H105: 0.400 | I105: 9.800 | J105: 47 | K105: №338 Дели 2015г
D108: итого | F108: =SUM(F101:F107) -> 533 | G108: 19.52 | H108: 19.858 | I108: 76.105 | J108: 572 | L108: 69.43
A109: =A101 -> 1 | B109: 6 | C109: Обед | D109: закуска
D110: 1 блюдо
D111: 2 блюдо
D112: гарнир
D113: напиток
D114: хлеб бел.
D115: хлеб черн.
D118: итого | F118: =SUM(F109:F117) -> 0 | G118: 0 | H118: 0 | I118: 0 | J118: 0 | L118: =SUM(L109:L117) -> 0
A119: =A101 -> 1 | B119: 6 | C119: Итого за день: | F119: =F108+F118 -> 533 | G119: 19.52 | H119: 19.858 | I119: 76.105 | J119: 572 | L119: =L108+L118 -> 69.43
A120: 2 | B120: 1 | C120: Завтрак | D120: гор.блюдо | E120: Гуляш из говядины | F120: 90 | G120: 10.575 | H120: 11.910 | I120: 2.561 | J120: 160 | K120: №260/2015г Дели
D121: гор.блюдо | E121: Макаронные изделия отварные | F121: 150 | G121: 5.602 | H121: 5.068 | I121: 35.906 | J121: 212 | K121: №309/2015г Дели
D122: гор.напиток | E122: Чай с сахаром, лимоном | F122: 213 | G122: 0.056 | H122: 0.012 | I122: 8.148 | J122: 34 | K122: ТТК от 2021г
D123: хлеб | E123: Хлеб ржано-пшеничный/ Хлеб пшеничный | F123: 50 | G123: 3.020 | H123: 0.460 | I123: 23.340 | J123: 124
D127: итого | F127: =SUM(F120:F126) -> 503 | G127: 19.253 | H127: 17.45 | I127: 69.955 | J127: 530 | L127: 69.43
A128: =A120 -> 2 | B128: 1 | C128: Обед | D128: закуска
D129: 1 блюдо
D130: 2 блюдо
D131: гарнир
D132: напиток
D133: хлеб бел.
D134: хлеб черн.
D137: итого | F137: =SUM(F128:F136) -> 0 | G137: 0 | H137: 0 | I137: 0 | J137: 0 | L137: =SUM(L128:L136) -> 0
A138: =A120 -> 2 | B138: 1 | C138: Итого за день: | F138: =F127+F137 -> 503 | G138: 19.253 | H138: 17.45 | I138: 69.955 | J138: 530 | L138: =L127+L137 -> 69.43
A139: 2 | B139: 2 | C139: Завтрак | D139: гор.блюдо | E139: Жаркое из птицы (грудки куриные) | F139: 190 | G139: 13.354 | H139: 13.713 | I139: 31.248 | J139: 302 | K139: ТТК 2023г
D141: гор.напиток | E141: Чай с сахаром, лимоном | F141: 213 | G141: 0.056 | H141: 0.012 | I141: 8.148 | J141: 34 | K141: ТТК от 2021г
D142: хлеб | E142: Хлеб ржано-пшеничный/ Хлеб пшеничный | F142: 40 | G142: 2.520 | H142: 0.360 | I142: 18.840 | J142: 91
D144: закуска | E144: Салат из моркови | F144: 60 | G144: 0.702 | H144: 3.051 | I144: 6.720 | J144: 58 | K144: ТТК
D146: итого | F146: =SUM(F139:F145) -> 503 | G146: 16.632 | H146: 17.136 | I146: 64.956 | J146: 485 | L146: 69.43
A147: =A139 -> 2 | B147: 2 | C147: Обед | D147: закуска
D148: 1 блюдо
D149: 2 блюдо
D150: гарнир
D151: напиток
D152: хлеб бел.
D153: хлеб черн.
D156: итого | F156: =SUM(F147:F155) -> 0 | G156: 0 | H156: 0 | I156: 0 | J156: 0 | L156: =SUM(L147:L155) -> 0
A157: =A139 -> 2 | B157: 2 | C157: Итого за день: | F157: =F146+F156 -> 503 | G157: 16.632 | H157: 17.136 | I157: 64.956 | J157: 485 | L157: =L146+L156 -> 69.43
A158: 2 | B158: 3 | C158: Завтрак | D158: гор.блюдо | E158: Пельмени "Для умников и умниц" отварные с маслом | F158: 185 | G158: 15.544 | H158: 14.086 | I158: 44.197 | J158: 366 | K158: ТТК 2015г
D160: гор.напиток | E160: Чай с сахаром, лимоном | F160: 213 | G160: 0.056 | H160: 0.012 | I160: 8.148 | J160: 34 | K160: ТТК от 2021г
D161: хлеб | E161: Хлеб ржано-пшеничный/ Хлеб пшеничный | F161: 45 | G161: 2.770 | H161: 0.410 | I161: 21.090 | J161: 102
D163: закуска | E163: Салат из свеклы отварной (с маслом) | F163: 60 | G163: 0.855 | H163: 3.653 | I163: 5.016 | J163: 56 | K163: №52/2015 Дели
D165: итого | F165: =SUM(F158:F164) -> 503 | G165: 19.225 | H165: 18.161 | I165: 78.451 | J165: 558 | L165: 69.43
A166: =A158 -> 2 | B166: 3 | C166: Обед | D166: закуска
D167: 1 блюдо
D168: 2 блюдо
D169: гарнир
D170: напиток
D171: хлеб бел.
D172: хлеб черн.
D175: итого | F175: =SUM(F166:F174) -> 0 | G175: 0 | H175: 0 | I175: 0 | J175: 0 | L175: =SUM(L166:L174) -> 0
A176: =A158 -> 2 | B176: 3 | C176: Итого за день: | F176: =F165+F175 -> 503 | G176: 19.225 | H176: 18.161 | I176: 78.451 | J176: 558 | L176: =L165+L175 -> 69.43
A177: 2 | B177: 4 | C177: Завтрак | D177: гор.блюдо | E177: Фрикассе из куриных грудок с овощами натуральными свежими (помидоры) | F177: 120 | G177: 8.356 | H177: 9.136 | I177: 2.376 | J177: 126 | K177: ТТК июль 2021г
D178: гор.блюдо | E178: Каша гречневая рассыпчатая | F178: 150 | G178: 6.622 | H178: 5.599 | I178: 35.675 | J178: 212 | K178: №302/2015г,Дели
D179: гор.напиток | E179: Напиток из шиповника | F179: 200 | G179: 0.012 | H179: 0.001 | I179: 10.178 | J179: 41 | K179: ТТК от 2021г
D180: хлеб | E180: Хлеб ржано-пшеничный/ Хлеб пшеничный | F180: 40 | G180: 2.520 | H180: 0.360 | I180: 18.840 | J180: 91
D184: итого | F184: =SUM(F177:F183) -> 510 | G184: 17.51 | H184: 15.096 | I184: 67.069 | J184: 470 | L184: 69.43
A185: =A177 -> 2 | B185: 4 | C185: Обед | D185: закуска
D186: 1 блюдо
D187: 2 блюдо
D188: гарнир
D189: напиток
D190: хлеб бел.
D191: хлеб черн.
D194: итого | F194: =SUM(F185:F193) -> 0 | G194: 0 | H194: 0 | I194: 0 | J194: 0 | L194: =SUM(L185:L193) -> 0
A195: =A177 -> 2 | B195: 4 | C195: Итого за день: | F195: =F184+F194 -> 510 | G195: 17.51 | H195: 15.096 | I195: 67.069 | J195: 470 | L195: =L184+L194 -> 69.43
A196: 2 | B196: 5 | C196: Завтрак | D196: гор.блюдо | E196: Тефтели куриные "Лакомка" в соусе для запекания | F196: 90 | G196: 9.268 | H196: 11.111 | I196: 5.217 | J196: 158 | K196: ТТК 2020 г
D197: гор.блюдо | E197: Макаронные изделия отварные | F197: 150 | G197: 5.602 | H197: 5.068 | I197: 35.906 | J197: 212 | K197: №309/2015г Дели
D198: гор.напиток | E198: Чай с сахаром | F198: 208 | G198: 0.011 | H198: 0.007 | I198: 7.998 | J198: 32 | K198: ТТК 2021г
D199: хлеб | E199: Хлеб ржано-пшеничный/ Хлеб пшеничный | F199: 40 | G199: 2.520 | H199: 0.360 | I199: 18.840 | J199: 91
D200: конд. изд. | E200: Вафли весовые 1 шт/ | F200: 21 | G200: 2.750 | H200: 2.500 | I200: 13.000 | J200: 86
D203: итого | F203: =SUM(F196:F202) -> 509 | G203: 20.151 | H203: 19.046 | I203: 80.961 | J203: 579 | L203: 69.43
A204: =A196 -> 2 | B204: 5 | C204: Обед | D204: закуска
D205: 1 блюдо
D206: 2 блюдо
D207: гарнир
D208: напиток
D209: хлеб бел.
D210: хлеб черн.
D213: итого | F213: =SUM(F204:F212) -> 0 | G213: 0 | H213: 0 | I213: 0 | J213: 0 | L213: =SUM(L204:L212) -> 0
A214: =A196 -> 2 | B214: 5 | C214: Итого за день: | F214: =F203+F213 -> 509 | G214: 20.151 | H214: 19.046 | I214: 80.961 | J214: 579 | L214: =L203+L213 -> 69.43
A215: 2 | B215: 6 | C215: Завтрак | D215: гор.блюдо | E215: Сосиски отварные с соусом для запекания | F215: 90 | G215: 8.916 | H215: 9.543 | I215: 8.758 | J215: 157 | K215: №243/2015 Дели
D216: гор.блюдо | E216: Рис отварной | F216: 150 | G216: 4.303 | H216: 5.129 | I216: 28.944 | J216: 179 | K216: №304/2015г,Дели
D217: гор.напиток | E217: Чай с сахаром | F217: 208 | G217: 0.011 | H217: 0.007 | I217: 7.998 | J217: 32 | K217: ТТК 2021г
D218: хлеб | E218: Хлеб ржано-пшеничный/ Хлеб пшеничный | F218: 40 | G218: 2.520 | H218: 0.360 | I218: 18.840 | J218: 91
D219: фрукты | E219: Плоды и ягоды свежие (яблоки) | F219: 100 | G219: 0.400 | H219: 0.400 | I219: 9.800 | J219: 47 | K219: №338 Дели 2015г
D222: итого | F222: =SUM(F215:F221) -> 588 | G222: 16.15 | H222: 15.439 | I222: 74.34 | J222: 506 | L222: 69.43
A223: =A215 -> 2 | B223: 6 | C223: Обед | D223: закуска
D224: 1 блюдо
D225: 2 блюдо
D226: гарнир
D227: напиток
D228: хлеб бел.
D229: хлеб черн.
D232: итого | F232: =SUM(F223:F231) -> 0 | G232: 0 | H232: 0 | I232: 0 | J232: 0 | L232: =SUM(L223:L231) -> 0
A233: =A215 -> 2 | B233: 6 | C233: Итого за день: | F233: =F222+F232 -> 588 | G233: 16.15 | H233: 15.439 | I233: 74.34 | J233: 506 | L233: =L222+L232 -> 69.43
C234: Среднее значение за период: | F234: =(F24+F43+F62+F81+F100+F138+F157+F176+F195+F214)/(IF(F24=0,0,1)+IF(F43=0,0,1)+IF(F62=0,0,1)+IF(F81=0,0,1)+IF(F100=0,0,1)+IF(F138=0,0,1)+IF(F157=0,0,1)+IF(F176=0,0,1)+IF(F195=0,0,1)+IF(F214=0,0,1)) -> 517.7 | G234: 17.6285 | H234: 17.6795 | I234: 71.2871 | J234: 518.5 | L234: =(L24+L43+L62+L81+L100+L138+L157+L176+L195+L214)/(IF(L24=0,0,1)+IF(L43=0,0,1)+IF(L62=0,0,1)+IF(L81=0,0,1)+IF(L100=0,0,1)+IF(L138=0,0,1)+IF(L157=0,0,1)+IF(L176=0,0,1)+IF(L195=0,0,1)+IF(L214=0,0,1)) -> 69.43
